fUST/lending_fUST_20260522
["ID","MTS","AMOUNT","RATE_DAILY","PERIOD"]
[422788585,1779393043000,-1000.0,0.00013699,2]
[422788583,1779393043000,-1000.0,0.00013699,2]
[422788584,1779393043000,-1000.0,0.00013699,2]
[422788590,1779393043000,-1000.0,0.00013699,2]
[422788588,1779393043000,-1000.0,0.00013699,2]
[422788586,1779393043000,-1000.0,0.00013699,2]
[422788591,1779393043000,-1000.0,0.00013699,2]
[422788592,1779393043000,-1000.0,0.00013699,2]
[422788593,1779393043000,-1000.0,0.00013699,2]
[422788582,1779393043000,-553.80990402,0.00013698,2]
[422788594,1779393043000,-1000.0,0.00013699,2]
[422788595,1779393043000,-1000.0,0.00013699,2]
[422788618,1779393043000,-160.0,0.00013699,2]
[422788596,1779393043000,-1000.0,0.00013699,2]
[422788599,1779393043000,-1000.0,0.00013699,2]
[422788600,1779393043000,-1000.0,0.00013699,2]
[422788597,1779393043000,-1000.0,0.00013699,2]
[422788605,1779393043000,-160.0,0.00013699,2]
[422788602,1779393043000,-467.53479161,0.00013699,2]
[422788603,1779393043000,-500.0,0.00013699,2]
[422788601,1779393043000,-1000.0,0.00013699,2]
[422788604,1779393043000,-500.0,0.00013699,2]
[422788606,1779393043000,-160.0,0.00013699,2]
[422788607,1779393043000,-160.0,0.00013699,2]
[422788608,1779393043000,-160.0,0.00013699,2]
[422788610,1779393043000,-160.0,0.00013699,2]
[422788612,1779393043000,-160.0,0.00013699,2]
[422788617,1779393043000,-160.0,0.00013699,2]
[422788598,1779393043000,-1000.0,0.00013699,2]
[422788645,1779393043000,-791.148913,0.00013699,2]
[422788655,1779393043000,-342.005853,0.00013699,2]
[422788647,1779393043000,-791.148913,0.00013699,2]
[422788686,1779393043000,-151.0,0.00013699,2]
[422788688,1779393043000,-151.0,0.00013699,2]
[422788679,1779393043000,-151.0,0.00013699,2]
[422788690,1779393043000,-151.0,0.00013699,2]
[422788703,1779393043000,-151.0,0.00013699,2]
[422788701,1779393043000,-174.09712755,0.00013699,2]
[422788689,1779393043000,-151.0,0.00013699,2]
[422788691,1779393043000,-151.0,0.00013699,2]
[422788702,1779393043000,-151.0,0.00013699,2]
[422788692,1779393043000,-151.0,0.00013699,2]
[422788694,1779393043000,-151.0,0.00013699,2]
[422788700,1779393043000,-151.0,0.00013699,2]
[422788693,1779393043000,-151.0,0.00013699,2]
[422788695,1779393043000,-151.0,0.00013699,2]
[422788697,1779393043000,-500.0,0.00013699,2]
[422788696,1779393043000,-151.0,0.00013699,2]
[422788698,1779393043000,-2000.0,0.00013699,7]
[422788699,1779393043000,-151.0,0.00013699,2]
[422788705,1779393043000,-151.0,0.00013699,2]
[422788704,1779393043000,-151.0,0.00013699,2]
[422788708,1779393043000,-151.0,0.00013699,2]
[422788714,1779393043000,-151.0,0.00013699,2]
[422788706,1779393043000,-151.0,0.00013699,2]
[422788710,1779393043000,-151.0,0.00013699,2]
[422788657,1779393043000,-342.005853,0.00013699,2]
[422788713,1779393043000,-151.0,0.00013699,2]
[422788709,1779393043000,-151.0,0.00013699,2]
[422788712,1779393043000,-151.0,0.00013699,2]
[422788711,1779393043000,-151.0,0.00013699,2]
[422788680,1779393043000,-151.0,0.00013699,2]
[422788685,1779393043000,-151.0,0.00013699,2]
[422788707,1779393043000,-151.0,0.00013699,2]
[422788677,1779393043000,-151.0,0.00013699,2]
[422788682,1779393043000,-151.0,0.00013699,2]
[422788646,1779393043000,-791.148913,0.00013699,2]
[422788649,1779393043000,-342.005853,0.00013699,2]
[422788648,1779393043000,-1000.0,0.00013699,2]
[422788654,1779393043000,-342.005853,0.00013699,2]
[422788656,1779393043000,-342.005853,0.00013699,2]
[422788652,1779393043000,-342.005853,0.00013699,2]
[422788653,1779393043000,-342.005853,0.00013699,2]
[422788651,1779393043000,-342.005853,0.00013699,2]
[422788659,1779393043000,-342.005853,0.00013699,2]
[422788663,1779393043000,-342.005853,0.00013699,2]
[422788672,1779393043000,-672.83342426,0.00013699,2]
[422788662,1779393043000,-342.005853,0.00013699,2]
[422788673,1779393043000,-1574.79,0.00013699,2]
[422788674,1779393043000,-181.20169508,0.00013699,7]
[422788650,1779393043000,-342.005853,0.00013699,2]
[422788665,1779393043000,-342.005853,0.00013699,2]
[422788661,1779393043000,-342.005853,0.00013699,2]
[422788684,1779393043000,-151.0,0.00013699,2]
[422788681,1779393043000,-151.0,0.00013699,2]
[422788678,1779393043000,-151.0,0.00013699,2]
[422788687,1779393043000,-151.0,0.00013699,2]
[422788676,1779393043000,-190.0,0.00013699,3]
[422788683,1779393043000,-151.0,0.00013699,2]
[422788666,1779393043000,-342.005853,0.00013699,2]
[422788669,1779393043000,-168.20835606,0.00013699,2]
[422788667,1779393043000,-342.005853,0.00013699,2]
[422788670,1779393043000,-336.41671213,0.00013699,2]
[422788668,1779393043000,-1414.536741,0.00013699,2]
[422788675,1779393043000,-362.40339015,0.00013699,7]
[422788671,1779393043000,-504.62506819,0.00013699,2]
[422788752,1779393044000,-2599.0299115,0.00013731,60]
[422788751,1779393044000,-406.59960948,0.00013715,60]
[422788748,1779393044000,-607.18001638,0.00013709,60]
[422788750,1779393044000,-165.447147,0.00013714,2]
[422788747,1779393044000,-3311.67974032,0.000137,2]
[422788754,1779393044000,-300.0,0.00013732,60]
[422788755,1779393044000,-239.0,0.00013732,60]
[422788749,1779393044000,-2599.0299115,0.00013709,60]
[422788753,1779393044000,-300.0,0.00013732,60]
[422788743,1779393044000,-2212.3865,0.000137,2]
[422788746,1779393044000,-1034.8698,0.000137,2]
[422788757,1779393044000,-2599.0299115,0.00013753,60]
[422788761,1779393044000,-239.0,0.00013753,60]
[422788756,1779393044000,-406.59960948,0.00013752,60]
[422788759,1779393044000,-550.0,0.00013753,60]
[422788767,1779393044000,-250.0,0.00013753,60]
[422788766,1779393044000,-193.0,0.00013753,60]
[422788764,1779393044000,-250.0,0.00013753,60]
[422788765,1779393044000,-250.0,0.00013753,60]
[422788762,1779393044000,-200.0,0.00013753,60]
[422788763,1779393044000,-261.0,0.00013753,60]
[422788715,1779393044000,-151.0,0.00013699,2]
[422788768,1779393044000,-250.0,0.00013753,60]
[422788745,1779393044000,-2036.26,0.000137,2]
[422788758,1779393044000,-550.0,0.00013753,60]
[422788744,1779393044000,-2119.8236,0.000137,2]
[422788718,1779393044000,-151.0,0.00013699,2]
[422788735,1779393044000,-2036.26,0.000137,2]
[422788717,1779393044000,-151.0,0.00013699,2]
[422788728,1779393044000,-151.0,0.00013699,2]
[422788727,1779393044000,-151.0,0.00013699,2]
[422788729,1779393044000,-151.0,0.00013699,2]
[422788716,1779393044000,-151.0,0.00013699,2]
[422788725,1779393044000,-151.0,0.00013699,2]
[422788723,1779393044000,-151.0,0.00013699,2]
[422788719,1779393044000,-151.0,0.00013699,2]
[422788724,1779393044000,-151.0,0.00013699,2]
[422788721,1779393044000,-151.0,0.00013699,2]
[422788722,1779393044000,-151.0,0.00013699,2]
[422788738,1779393044000,-2246.043,0.000137,2]
[422788720,1779393044000,-151.0,0.00013699,2]
[422788733,1779393044000,-1508.45,0.000137,2]
[422788732,1779393044000,-1510.73,0.000137,2]
[422788730,1779393044000,-1000.0,0.00013699,2]
[422788739,1779393044000,-2246.04,0.000137,2]
[422788742,1779393044000,-478.3,0.000137,2]
[422788740,1779393044000,-1394.0721,0.000137,2]
[422788731,1779393044000,-157.72,0.00013699,2]
[422788741,1779393044000,-151.6,0.000137,2]
[422788734,1779393044000,-326.7474,0.000137,2]
[422788736,1779393044000,-1510.73,0.000137,2]
[422788737,1779393044000,-1508.45,0.000137,2]
[422788726,1779393044000,-151.0,0.00013699,2]
[422788769,1779393044000,-245.0,0.00013753,60]
[422788760,1779393044000,-451.0,0.00013753,60]
[422788772,1779393044000,-200.0,0.00013753,60]
[422788810,1779393044000,-720.0,0.00013832,2]
[422788811,1779393044000,-852.08,0.00013833,2]
[422788801,1779393044000,-300.0,0.00013808,2]
[422788812,1779393044000,-250.0,0.00013891,2]
[422788800,1779393044000,-300.0,0.00013808,2]
[422788803,1779393044000,-200.0,0.00013813,2]
[422788805,1779393044000,-268.188481,0.00013828,2]
[422788804,1779393044000,-590.94587517,0.00013814,2]
[422788807,1779393044000,-211.023049,0.00013828,2]
[422788808,1779393044000,-200.531494,0.00013828,2]
[422788806,1779393044000,-306.588905,0.00013828,2]
[422788813,1779393044000,-250.0,0.00013891,2]
[422788815,1779393044000,-250.0,0.00013891,2]
[422788816,1779393044000,-250.0,0.00013891,2]
[422788817,1779393044000,-250.0,0.00013891,2]
[422788814,1779393044000,-250.0,0.00013891,2]
[422788818,1779393044000,-250.0,0.00013891,2]
[422788820,1779393044000,-384.0,0.00013891,2]
[422788819,1779393044000,-250.0,0.00013891,2]
[422788825,1779393044000,-1439.3402764,0.00013973,2]
[422788821,1779393044000,-590.94587517,0.00013898,2]
[422788824,1779393044000,-1389.74,0.00013972,2]
[422788822,1779393044000,-471.6,0.000139,2]
[422788823,1779393044000,-3311.67974032,0.000139,2]
[422788770,1779393044000,-250.0,0.00013753,60]
[422788809,1779393044000,-228.630047,0.00013828,2]
[422788802,1779393044000,-180.0,0.00013808,2]
[422788778,1779393044000,-160.0,0.00013799,2]
[422788799,1779393044000,-300.0,0.00013808,2]
[422788771,1779393044000,-395.0,0.00013753,60]
[422788795,1779393044000,-300.0,0.00013808,2]
[422788773,1779393044000,-200.0,0.00013753,60]
[422788774,1779393044000,-196.0,0.00013753,60]
[422788775,1779393044000,-157.71,0.00013757,2]
[422788776,1779393044000,-262.525839,0.00013759,2]
[422788786,1779393044000,-791.148913,0.000138,2]
[422788777,1779393044000,-202.238952,0.00013759,2]
[422788785,1779393044000,-6252.092852,0.000138,2]
[422788782,1779393044000,-6252.092849,0.000138,2]
[422788779,1779393044000,-151.51,0.000138,2]
[422788787,1779393044000,-791.148913,0.000138,2]
[422788784,1779393044000,-6252.092849,0.000138,2]
[422788783,1779393044000,-6252.092849,0.000138,2]
[422788796,1779393044000,-300.0,0.00013808,2]
[422788780,1779393044000,-42792.05393274,0.000138,2]
[422788798,1779393044000,-300.0,0.00013808,2]
[422788794,1779393044000,-300.0,0.00013808,2]
[422788789,1779393044000,-791.148912,0.000138,2]
[422788793,1779393044000,-342.005844,0.000138,2]
[422788797,1779393044000,-300.0,0.00013808,2]
[422788792,1779393044000,-342.005853,0.000138,2]
[422788791,1779393044000,-342.005853,0.000138,2]
[422788788,1779393044000,-791.148913,0.000138,2]
[422788781,1779393044000,-3311.67974032,0.000138,2]
[422788790,1779393044000,-342.005853,0.000138,2]
[422788834,1779393045000,-151.0,0.00013699,2]
[422788826,1779393045000,-334.383521,0.00012355,2]
[422788828,1779393045000,-200.0,0.0001398,2]
[422788827,1779393045000,-2072.1797236,0.00013973,2]
[422788829,1779393045000,-841.04178032,0.0001399,2]
[422788830,1779393045000,-160.0,0.00013999,2]
[422788831,1779393045000,-176487.80058766,0.00014,10]
[422788833,1779393045000,-257.218093,0.00012859,2]
[422788832,1779393045000,-508.767043,0.00012355,2]
[422788835,1779393045000,-151.0,0.00013699,2]
[422788848,1779393045000,-151.0,0.00013699,2]
[422788837,1779393045000,-2251.014864,0.00014,10]
[422788839,1779393045000,-151.0,0.00013699,2]
[422788843,1779393045000,-4107.12926576,0.00014,10]
[422788841,1779393045000,-7255.91344323,0.00014,10]
[422788845,1779393045000,-2304.04507,0.00014,10]
[422788846,1779393045000,-974.73856006,0.00014,10]
[422788852,1779393045000,-7402.14716759,0.00014,10]
[422788851,1779393045000,-151.0,0.00013699,2]
[422788849,1779393045000,-151.0,0.00013699,2]
[422788850,1779393045000,-151.0,0.00013699,2]
[422788836,1779393045000,-151.0,0.00013699,2]
[422788868,1779393046000,-151.0,0.00013699,2]
[422788870,1779393046000,-835.14463847,0.00014,10]
[422788869,1779393046000,-5848.41189998,0.00014,10]
[422788873,1779393692000,-300.0,8.823e-05,2]
[422789002,1779394233000,-218.97,8.687e-05,7]
[422788997,1779394233000,-859.79186352,8.562e-05,2]
[422788998,1779394233000,-599.93606918,8.562e-05,2]
[422788999,1779394233000,-3540.2720673,8.562e-05,2]
[422789000,1779394233000,-391.83756778,8.668e-05,2]
[422789001,1779394233000,-200.0,8.687e-05,2]
[422789003,1779394233000,-500.0,8.912e-05,2]
[422789004,1779394233000,-172.70787,8.966e-05,2]
[422789013,1779394233000,-1888.97452691,9.1e-05,2]
[422789006,1779394233000,-300.0,9.098e-05,2]
[422789011,1779394233000,-810.44880858,9.1e-05,2]
[422789012,1779394233000,-1711.47777944,9.1e-05,2]
[422789009,1779394233000,-300.0,9.098e-05,2]
[422789008,1779394233000,-300.0,9.098e-05,2]
[422789010,1779394233000,-810.44880858,9.1e-05,2]
[422789007,1779394233000,-300.0,9.098e-05,2]
[422789014,1779394233000,-1842.09239517,9.1e-05,2]
[422789005,1779394233000,-1200.0,9.097e-05,2]
[422789077,1779394238000,-500.0,9.198e-05,2]
[422789080,1779394238000,-500.0,9.198e-05,2]
[422789078,1779394238000,-500.0,9.198e-05,2]
[422789081,1779394238000,-500.0,9.198e-05,2]
[422789079,1779394238000,-500.0,9.198e-05,2]
[422789082,1779394238000,-500.0,9.198e-05,2]
[422789088,1779394238000,-500.0,9.198e-05,2]
[422789086,1779394238000,-500.0,9.198e-05,2]
[422789085,1779394238000,-500.0,9.198e-05,2]
[422789084,1779394238000,-500.0,9.198e-05,2]
[422789075,1779394238000,-639.75944242,9.198e-05,2]
[422789090,1779394238000,-500.0,9.198e-05,2]
[422789087,1779394238000,-500.0,9.198e-05,2]
[422789089,1779394238000,-232.15432544,9.198e-05,2]
[422789094,1779394238000,-500.0,9.198e-05,2]
[422789083,1779394238000,-363.22327901,9.198e-05,2]
[422789076,1779394238000,-524.7490121,9.198e-05,2]
[422789074,1779394238000,-500.0,9.198e-05,2]
[422789070,1779394238000,-500.0,9.198e-05,2]
[422789091,1779394238000,-500.0,9.198e-05,2]
[422789058,1779394238000,-2066.47127447,9.1e-05,2]
[422789057,1779394238000,-100.50143956,9.1e-05,2]
[422789060,1779394238000,-276.17610781,9.1e-05,2]
[422789064,1779394238000,-293.19136927,9.1e-05,2]
[422789059,1779394238000,-199.52195891,9.1e-05,2]
[422789063,1779394238000,-293.19136927,9.1e-05,2]
[422789061,1779394238000,-276.17610781,9.1e-05,2]
[422789067,1779394238000,-500.0,9.197e-05,2]
[422789065,1779394238000,-308.42801423,9.1e-05,2]
[422789068,1779394238000,-500.0,9.198e-05,2]
[422789066,1779394238000,-308.42801423,9.1e-05,2]
[422789069,1779394238000,-500.0,9.198e-05,2]
[422789071,1779394238000,-532.75702762,9.198e-05,2]
[422789072,1779394238000,-176.69121452,9.198e-05,2]
[422789073,1779394238000,-500.0,9.198e-05,2]
[422789093,1779394238000,-500.0,9.198e-05,2]
[422789125,1779394238000,-1648.50254335,9.199e-05,2]
[422789095,1779394238000,-500.0,9.198e-05,2]
[422789114,1779394238000,-1616.17896406,9.199e-05,2]
[422789117,1779394238000,-421.89465802,9.199e-05,2]
[422789092,1779394238000,-500.0,9.198e-05,2]
[422789118,1779394238000,-1194.28430604,9.199e-05,2]
[422789120,1779394238000,-1616.17896406,9.199e-05,2]
[422789121,1779394238000,-1648.50254335,9.199e-05,2]
[422789122,1779394238000,-1648.50254335,9.199e-05,2]
[422789124,1779394238000,-1648.50254335,9.199e-05,2]
[422789123,1779394238000,-1648.50254335,9.199e-05,2]
[422789126,1779394238000,-1648.50254335,9.199e-05,2]
[422789127,1779394238000,-1648.50254335,9.199e-05,2]
[422789129,1779394238000,-1648.50254335,9.199e-05,2]
[422789128,1779394238000,-1648.50254335,9.199e-05,2]
[422789131,1779394238000,-160352.52447087,9.2e-05,2]
[422789130,1779394238000,-9134.99918472,9.2e-05,2]
[422789115,1779394238000,-1616.17896406,9.199e-05,2]
[422789116,1779394238000,-1616.17896406,9.199e-05,2]
[422789119,1779394238000,-1616.17896406,9.199e-05,2]
[422789112,1779394238000,-1616.17896406,9.199e-05,2]
[422789096,1779394238000,-500.0,9.198e-05,2]
[422789098,1779394238000,-500.0,9.198e-05,2]
[422789100,1779394238000,-500.0,9.198e-05,2]
[422789113,1779394238000,-1616.17896406,9.199e-05,2]
[422789102,1779394238000,-1616.17896406,9.199e-05,2]
[422789097,1779394238000,-500.0,9.198e-05,2]
[422789101,1779394238000,-500.0,9.198e-05,2]
[422789106,1779394238000,-1616.17896406,9.199e-05,2]
[422789099,1779394238000,-500.0,9.198e-05,2]
[422789105,1779394238000,-1616.17896406,9.199e-05,2]
[422789104,1779394238000,-1616.17896406,9.199e-05,2]
[422789107,1779394238000,-1616.17896406,9.199e-05,2]
[422789108,1779394238000,-1616.17896406,9.199e-05,2]
[422789109,1779394238000,-1616.17896406,9.199e-05,2]
[422789111,1779394238000,-1616.17896406,9.199e-05,2]
[422789103,1779394238000,-1616.17896406,9.199e-05,2]
[422789110,1779394238000,-1616.17896406,9.199e-05,2]
[422789132,1779394239000,-1380418.3763485,9.2e-05,2]
[422789133,1779394239000,-345.92914224,9.2e-05,2]
[422789156,1779394243000,-1779.32204679,9.108e-05,2]
[422789161,1779394246000,-3401.08930543,9.2e-05,2]
[422789160,1779394246000,-5914.32123151,9.2e-05,2]
[422789159,1779394246000,-3220.67795321,9.108e-05,2]
[422789168,1779395335000,10727.72846738,0.000178,120]
[422789186,1779395432000,-482.27868158,7.374e-05,2]
[422789189,1779395432000,-3193.80049013,7.374e-05,2]
[422789187,1779395432000,-423.92082829,7.374e-05,2]
[422789188,1779395432000,-900.0,7.374e-05,2]
[422789195,1779395432000,-446.53750294,7.6e-05,2]
[422789190,1779395432000,-393.04939921,7.467e-05,2]
[422789193,1779395432000,-1200.0,7.598e-05,2]
[422789192,1779395432000,-300.0,7.598e-05,2]
[422789194,1779395432000,-300.0,7.598e-05,2]
[422789191,1779395432000,-181.0,7.598e-05,2]
[422789321,1779395441000,-319.62677548,9.097e-05,2]
[422789323,1779395441000,-500.0,9.097e-05,2]
[422789325,1779395441000,-426.14096438,9.097e-05,2]
[422789336,1779395441000,-500.0,9.097e-05,2]
[422789340,1779395441000,-500.0,9.097e-05,2]
[422789338,1779395441000,-500.0,9.097e-05,2]
[422789341,1779395441000,-500.0,9.097e-05,2]
[422789345,1779395441000,-184.30354155,9.097e-05,2]
[422789326,1779395441000,-500.0,9.097e-05,2]
[422789347,1779395441000,-500.0,9.097e-05,2]
[422789349,1779395441000,-1344.14371231,9.099e-05,2]
[422789351,1779395441000,-1344.14371231,9.099e-05,2]
[422789358,1779395441000,-1344.14371231,9.099e-05,2]
[422789355,1779395441000,-1344.14371231,9.099e-05,2]
[422789353,1779395441000,-1344.14371231,9.099e-05,2]
[422789343,1779395441000,-500.0,9.097e-05,2]
[422789319,1779395441000,-500.0,9.097e-05,2]
[422789317,1779395441000,-500.0,9.097e-05,2]
[422789332,1779395441000,-500.0,9.097e-05,2]
[422789271,1779395441000,-5000.0,7.6e-05,2]
[422789293,1779395441000,-19750.02248755,7.6e-05,2]
[422789299,1779395441000,-420.0,8.358e-05,2]
[422789297,1779395441000,-167.7898764,8.238e-05,2]
[422789295,1779395441000,-500.0,8.219e-05,2]
[422789301,1779395441000,-1680.0,8.358e-05,2]
[422789306,1779395441000,-500.0,9.041e-05,2]
[422789334,1779395441000,-500.0,9.097e-05,2]
[422789303,1779395441000,-500.0,8.493e-05,2]
[422789312,1779395441000,-500.0,9.097e-05,2]
[422789313,1779395441000,-500.0,9.097e-05,2]
[422789310,1779395441000,-500.0,9.097e-05,2]
[422789315,1779395441000,-347.86915654,9.097e-05,2]
[422789330,1779395441000,-430.63406782,9.097e-05,2]
[422789328,1779395441000,-500.0,9.097e-05,2]
[422789360,1779395441000,-1344.14371231,9.099e-05,2]
[422789308,1779395441000,-176.660717,9.075e-05,2]
[422789357,1779395441000,-1344.14371231,9.099e-05,2]
[422789304,1779395441000,-500.0,8.767e-05,2]
[422789364,1779395441000,-1344.14371231,9.099e-05,2]
[422789407,1779395441000,-600.0,9.381e-05,2]
[422789409,1779395441000,-463.79829106,9.467e-05,2]
[422789411,1779395441000,-161.7158655,9.541e-05,2]
[422789402,1779395441000,-149567.75950145,9.2e-05,2]
[422789413,1779395441000,-500.0,9.589e-05,2]
[422789418,1779395441000,-529.0,0.00010113,2]
[422789416,1779395441000,-433.0,0.00010113,2]
[422789405,1779395441000,-500.0,9.315e-05,2]
[422789414,1779395441000,-500.0,9.863e-05,2]
[422789420,1779395441000,-500.0,0.00010136,2]
[422789424,1779395441000,-720.0,0.00010319,2]
[422789428,1779395441000,-185.0,0.00010365,2]
[422789432,1779395441000,-500.0,0.0001041,2]
[422789434,1779395441000,-44835.13850513,0.000105,2]
[422789436,1779395441000,-500.0,0.00010684,2]
[422789362,1779395441000,-1344.14371231,9.099e-05,2]
[422789422,1779395441000,-251.09131232,0.000103,2]
[422789404,1779395441000,-251.09131235,9.2e-05,2]
[422789430,1779395441000,-443.0,0.00010365,2]
[422789400,1779395441000,-9134.99918472,9.2e-05,2]
[422789398,1779395441000,-8611.0121383,9.199e-05,2]
[422789368,1779395441000,-1344.14371231,9.099e-05,2]
[422789366,1779395441000,-1344.14371231,9.099e-05,2]
[422789372,1779395441000,-1344.14371231,9.099e-05,2]
[422789374,1779395441000,-1344.14371231,9.099e-05,2]
[422789383,1779395441000,-1207.81238242,9.1e-05,2]
[422789385,1779395441000,-1207.81238242,9.1e-05,2]
[422789387,1779395441000,-1343.34665289,9.1e-05,2]
[422789370,1779395441000,-1344.14371231,9.099e-05,2]
[422789391,1779395441000,-1448.58831835,9.1e-05,2]
[422789378,1779395441000,-1344.14371231,9.099e-05,2]
[422789376,1779395441000,-1344.14371231,9.099e-05,2]
[422789381,1779395441000,-582.77569227,9.1e-05,2]
[422789379,1779395441000,-582.77569227,9.1e-05,2]
[422789392,1779395441000,-100000.0,9.1e-05,2]
[422789394,1779395441000,-587.0,9.194e-05,2]
[422789389,1779395441000,-1343.34665289,9.1e-05,2]
[422789396,1779395441000,-2351.0,9.194e-05,2]
[422789509,1779395442000,-151.0,0.000128,2]
[422789510,1779395442000,-506.40426759,0.00012884,2]
[422789508,1779395442000,-151.0,0.000128,2]
[422789505,1779395442000,-733.22639542,0.00012729,2]
[422789507,1779395442000,-150.98,0.000128,2]
[422789506,1779395442000,-506.40426759,0.00012794,2]
[422789502,1779395442000,-151.0,0.000125,2]
[422789503,1779395442000,-150.98,0.000126,2]
[422789500,1779395442000,-150.98,0.000125,2]
[422789501,1779395442000,-151.0,0.000125,2]
[422789498,1779395442000,-150.98,0.000124,2]
[422789499,1779395442000,-1000.0,0.00012486,2]
[422789504,1779395442000,-251.09131232,0.000127,2]
[422789512,1779395442000,-506.40426759,0.00012959,2]
[422789520,1779395442000,-1987.0078442,0.000131,2]
[422789516,1779395442000,-150.98,0.00013,2]
[422789511,1779395442000,-150.98,0.000129,2]
[422789513,1779395442000,-733.22639542,0.00012983,7]
[422789517,1779395442000,-506.40426759,0.00013022,2]
[422789518,1779395442000,-506.40426759,0.00013074,2]
[422789515,1779395442000,-1987.0078442,0.00013,2]
[422789519,1779395442000,-537.45,0.00013084,2]
[422789521,1779395442000,-200.0,0.000131,2]
[422789523,1779395442000,-151.0,0.000131,2]
[422789522,1779395442000,-151.0,0.000131,2]
[422789524,1779395442000,-151.0,0.000131,2]
[422789525,1779395442000,-325.8428723,0.00013137,2]
[422789535,1779395442000,-189.699914,0.0001323,2]
[422789497,1779395442000,-537.6845,0.00012373,2]
[422789514,1779395442000,-275.937197,0.00012984,2]
[422789496,1779395442000,-25.0481081,0.00012373,2]
[422789458,1779395442000,-151.0,0.000113,2]
[422789494,1779395442000,-162.380719,0.00012373,2]
[422789526,1779395442000,-506.40426759,0.0001315,2]
[422789439,1779395442000,-240.0,0.00010959,3]
[422789443,1779395442000,-570.72498293,0.00010959,2]
[422789441,1779395442000,-15000.0,0.00010959,2]
[422789437,1779395442000,-464.71257322,0.00010958,2]
[422789447,1779395442000,-151.0,0.00011,2]
[422789445,1779395442000,-176.660717,0.00010985,2]
[422789449,1779395442000,-151.0,0.00011,2]
[422789451,1779395442000,-151.0,0.00011,2]
[422789464,1779395442000,-251.09131232,0.000115,2]
[422789452,1779395442000,-151.0,0.00011,2]
[422789456,1779395442000,-151.0,0.000113,2]
[422789462,1779395442000,-534.54718292,0.00011467,2]
[422789454,1779395442000,-151.0,0.00011,2]
[422789466,1779395442000,-151.0,0.000116,2]
[422789459,1779395442000,-864.0,0.00011351,2]
[422789470,1779395442000,-174.74262722,0.00011828,2]
[422789468,1779395442000,-151.0,0.000116,2]
[422789472,1779395442000,-500.0,0.00011847,2]
[422789474,1779395442000,-151.0,0.000119,2]
[422789476,1779395442000,-151.0,0.000119,2]
[422789478,1779395442000,-150.98,0.00012,2]
[422789488,1779395442000,-151.0,0.000122,2]
[422789481,1779395442000,-224.0,0.00012055,3]
[422789483,1779395442000,-150.98,0.000121,2]
[422789492,1779395442000,-150.98,0.000123,2]
[422789484,1779395442000,-1479.58898855,0.00012184,2]
[422789490,1779395442000,-794.0,0.000122,2]
[422789486,1779395442000,-151.0,0.000122,2]
[422789495,1779395442000,-474.9518919,0.00012373,2]
[422789529,1779395442000,-151.0,0.000132,2]
[422789598,1779395442000,-1000.0,0.00013735,2]
[422789528,1779395442000,-150.98,0.000132,2]
[422789570,1779395442000,-151.0,0.000136,2]
[422789569,1779395442000,-506.40426759,0.00013554,2]
[422789572,1779395442000,-603.61,0.00013677,2]
[422789578,1779395442000,-181.20169508,0.00013699,7]
[422789571,1779395442000,-152.0,0.00013677,7]
[422789577,1779395442000,-6349.595028,0.00013699,2]
[422789574,1779395442000,-1364.536741,0.00013699,2]
[422789575,1779395442000,-12879.8196802,0.00013699,2]
[422789576,1779395442000,-1000.0,0.00013699,2]
[422789573,1779395442000,-180.02160259,0.00013699,2]
[422789580,1779395442000,-1483.0,0.00013699,2]
[422789579,1779395442000,-362.40339015,0.00013699,7]
[422789581,1779395442000,-159.7559076,0.00013699,2]
[422789582,1779395442000,-319.5118152,0.00013699,2]
[422789583,1779395442000,-479.26772279,0.00013699,2]